fUST/lending_fUST_20251129
["ID","MTS","AMOUNT","RATE_DAILY","PERIOD"]
[395068986,1764397871541,-500.0,0.00015616,2]
[395068987,1764397871550,-500.0,0.00015616,2]
[395068988,1764397871559,-500.0,0.00015616,2]
[395068989,1764397871569,-500.0,0.00015616,2]
[395068990,1764397871579,-500.0,0.00015616,2]
[395068991,1764397871588,-318.31228367,0.00015616,2]
[395068992,1764397871597,-500.0,0.00015616,2]
[395068993,1764397871606,-587.4,0.00015616,2]
[395068994,1764397871616,-500.0,0.00015616,2]
[395068995,1764397871625,-500.0,0.00015616,2]
[395068996,1764397871635,-738.75,0.00015616,2]
[395068997,1764397871644,-500.0,0.00015616,2]
[395068998,1764397871653,-500.0,0.00015616,2]
[395068999,1764397871662,-500.0,0.00015616,2]
[395069000,1764397871672,-596.16,0.00015616,2]
[395069001,1764397871681,-500.0,0.00015616,2]
[395069002,1764397871691,-500.0,0.00015616,2]
[395069003,1764397871701,-574.22,0.00015616,2]
[395069004,1764397871710,-500.0,0.00015616,2]
[395069005,1764397871720,-581.68,0.00015616,2]
[395069006,1764397871731,-500.0,0.00015616,2]
[395069007,1764397871740,-500.0,0.00015616,2]
[395069008,1764397871750,-556.95,0.00015616,2]
[395069009,1764397871759,-564.08,0.00015616,2]
[395069010,1764397871768,-540.78,0.00015616,2]
[395069011,1764397871777,-500.0,0.00015616,2]
[395069012,1764397871787,-689.25,0.00015616,2]
[395069013,1764397871796,-500.0,0.00015616,2]
[395069014,1764397871806,-848.59,0.00015616,2]
[395069015,1764397871816,-312.2135137,0.00015616,2]
[395069016,1764397871829,-1164.8,0.00015616,2]
[395069017,1764397871841,-500.0,0.00015616,2]
[395069018,1764397871858,-500.0,0.00015616,2]
[395069019,1764397871867,-500.0,0.00015616,2]
[395069020,1764397871876,-1236.56,0.00015616,2]
[395069021,1764397871886,-500.0,0.00015616,2]
[395069022,1764397871896,-3090.35,0.00015616,2]
[395069023,1764397871906,-529.77,0.00015616,2]
[395069024,1764397871917,-5933.31,0.00015616,2]
[395069025,1764397871926,-1214.71,0.00015616,2]
[395069026,1764397871936,-500.0,0.00015616,2]
[395069027,1764397871945,-652.25,0.00015616,2]
[395069028,1764397871955,-1897.31,0.00015616,2]
[395069029,1764397871964,-500.0,0.00015616,2]
[395069030,1764397871973,-990.53,0.00015616,2]
[395069031,1764397871983,-500.0,0.00015616,2]
[395069032,1764397871992,-500.0,0.00015616,2]
[395069033,1764397872001,-778.35,0.00015616,2]
[395069034,1764397872011,-1618.79,0.00015616,2]
[395069035,1764397872020,-592.68,0.00015616,2]
[395069036,1764397872030,-899.31,0.00015616,2]
[395069037,1764397872040,-940.19,0.00015616,2]
[395069038,1764397872049,-500.0,0.00015616,2]
[395069039,1764397872060,-500.0,0.00015616,2]
[395069040,1764397872069,-500.0,0.00015616,2]
[395069041,1764397872078,-1484.2,0.00015616,2]
[395069042,1764397872089,-500.0,0.00015616,2]
[395069043,1764397872100,-596.04,0.00015616,2]
[395069044,1764397872110,-2800.32,0.00015616,2]
[395069045,1764397872120,-500.0,0.00015616,2]
[395069046,1764397872129,-500.0,0.00015616,2]
[395069047,1764397872138,-500.0,0.00015616,2]
[395069048,1764397872147,-500.0,0.00015616,2]
[395069049,1764397872156,-500.0,0.00015616,2]
[395069050,1764397872165,-552.21,0.00015616,2]
[395069051,1764397872175,-500.0,0.00015616,2]
[395069052,1764397872184,-1559.52,0.00015616,2]
[395069053,1764397872193,-522.61,0.00015616,2]
[395069054,1764397872203,-797.75,0.00015616,2]
[395069055,1764397872213,-513.48,0.00015616,2]
[395069056,1764397872223,-526.07,0.00015616,2]
[395069057,1764397872238,-500.0,0.00015616,2]
[395069058,1764397872247,-500.0,0.00015616,2]
[395069059,1764397872257,-1335.25,0.00015616,2]
[395069060,1764397872267,-1099.74,0.00015616,2]
[395069061,1764397872280,-3619.92,0.00015616,2]
[395069062,1764397872290,-500.0,0.00015616,2]
[395069063,1764397872299,-2405.03,0.00015616,2]
[395069064,1764397872310,-500.0,0.00015616,2]
[395069065,1764397872319,-7651.96,0.00015616,2]
[395069066,1764397872328,-500.0,0.00015616,2]
[395069067,1764397872338,-500.0,0.00015616,2]
[395069068,1764397872347,-500.0,0.00015616,2]
[395069069,1764397872355,-649.66,0.00015616,2]
[395069070,1764397872364,-1908.06,0.00015616,2]
[395069071,1764397872374,-500.0,0.00015616,2]
[395069072,1764397872383,-500.0,0.00015616,2]
[395069073,1764397872393,-662.97,0.00015616,2]
[395069074,1764397872402,-1158.74,0.00015616,2]
[395069075,1764397872411,-500.0,0.00015616,2]
[395069076,1764397872421,-1514.35,0.00015616,2]
[395069077,1764397872430,-642.19,0.00015616,2]
[395069078,1764397872439,-500.0,0.00015616,2]
[395069079,1764397872448,-500.0,0.00015616,2]
[395069080,1764397872458,-500.0,0.00015616,2]
[395069081,1764397872468,-3678.73,0.00015616,2]
[395069082,1764397872477,-6008.98,0.00015616,2]
[395069083,1764397872487,-514.33,0.00015616,2]
[395069084,1764397872496,-776.58,0.00015616,2]
[395069085,1764397872505,-500.0,0.00015616,2]
[395069086,1764397872514,-500.0,0.00015616,2]
[395069087,1764397872524,-3777.58,0.00015616,2]
[395069088,1764397872533,-980.94,0.00015616,2]
[395069089,1764397872542,-500.0,0.00015616,2]
[395069090,1764397872551,-500.0,0.00015616,2]
[395069091,1764397872564,-500.0,0.00015616,2]
[395069092,1764397872573,-907.07,0.00015616,2]
[395069093,1764397872583,-500.0,0.00015616,2]
[395069094,1764397872592,-1083.76,0.00015616,2]
[395069095,1764397872602,-604.62,0.00015616,2]
[395069096,1764397872611,-500.0,0.00015616,2]
[395069097,1764397872620,-1104.96,0.00015616,2]
[395069098,1764397872630,-500.0,0.00015616,2]
[395069099,1764397872639,-500.0,0.00015616,2]
[395069100,1764397872649,-6559.69,0.00015616,2]
[395069101,1764397872658,-151.03103375,0.00015616,2]
[395069102,1764397872667,-939.05,0.00015616,2]
[395069103,1764397872677,-500.0,0.00015616,2]
[395069104,1764397872686,-1377.4,0.00015616,2]
[395069105,1764397872695,-4642.22,0.00015616,2]
[395069106,1764397872704,-500.0,0.00015616,2]
[395069107,1764397872714,-1099.3,0.00015616,2]
[395069108,1764397872724,-360.0,0.00015648,2]
[395069109,1764397872734,-200.8623029,0.00015667,2]
[395069110,1764397872743,-600.0,0.0001567,2]
[395069111,1764397872752,-150.0,0.00015744,2]
[395069112,1764397872761,-500.0,0.00015769,2]
[395069113,1764397872770,-155.245964,0.0001578,2]
[395069114,1764397872779,-368.72313193,0.00015819,10]
[395069115,1764397872789,-600.0,0.0001583,2]
[395069116,1764397872799,-1500.0,0.00015864,2]
[395069117,1764397872808,-500.0,0.0001589,2]
[395069118,1764397872818,-500.0,0.0001589,2]
[395069119,1764397872828,-500.0,0.0001589,2]
[395069120,1764397872837,-500.0,0.0001589,2]
[395069121,1764397872850,-500.0,0.0001589,2]
[395069122,1764397872859,-766.13,0.0001589,2]
[395069123,1764397872869,-556.64,0.0001589,2]
[395069124,1764397872878,-500.0,0.0001589,2]
[395069125,1764397872888,-834.94,0.0001589,2]
[395069126,1764397872897,-500.0,0.0001589,2]
[395069127,1764397872907,-500.0,0.0001589,2]
[395069128,1764397872916,-823.76,0.0001589,2]
[395069129,1764397872926,-322.76184311,0.0001589,2]
[395069130,1764397872935,-500.0,0.0001589,2]
[395069131,1764397872944,-500.0,0.0001589,2]
[395069132,1764397872953,-500.0,0.0001589,2]
[395069133,1764397872962,-598.61,0.0001589,2]
[395069134,1764397872971,-500.0,0.0001589,2]
[395069135,1764397872980,-903.4,0.0001589,2]
[395069136,1764397872989,-500.0,0.0001589,2]
[395069137,1764397872999,-500.0,0.0001589,2]
[395069138,1764397873008,-500.0,0.0001589,2]
[395069139,1764397873018,-500.0,0.0001589,2]
[395069140,1764397873027,-500.0,0.0001589,2]
[395069141,1764397873036,-500.0,0.0001589,2]
[395069142,1764397873045,-500.0,0.0001589,2]
[395069143,1764397873054,-362.01313394,0.0001589,2]
[395069144,1764397873063,-500.0,0.0001589,2]
[395069145,1764397873072,-745.8,0.0001589,2]
[395069146,1764397873082,-500.0,0.0001589,2]
[395069147,1764397873091,-500.0,0.0001589,2]
[395069148,1764397873100,-500.0,0.0001589,2]
[395069149,1764397873109,-500.0,0.0001589,2]
[395069150,1764397873119,-500.0,0.0001589,2]
[395069151,1764397873128,-500.0,0.0001589,2]
[395069152,1764397873138,-500.0,0.0001589,2]
[395069153,1764397873147,-587.4,0.0001589,2]
[395069154,1764397873157,-500.0,0.0001589,2]
[395069155,1764397873166,-490.07056064,0.0001589,2]
[395069156,1764397873175,-738.75,0.0001589,2]
[395069157,1764397873184,-500.0,0.0001589,2]
[395069158,1764397873194,-500.0,0.0001589,2]
[395069159,1764397873204,-500.0,0.0001589,2]
[395069160,1764397873213,-596.16,0.0001589,2]
[395069161,1764397873223,-500.0,0.0001589,2]
[395069162,1764397873236,-500.0,0.0001589,2]
[395069163,1764397873245,-574.22,0.0001589,2]
[395069164,1764397873255,-500.0,0.0001589,2]
[395069165,1764397873263,-581.68,0.0001589,2]
[395069166,1764397873273,-500.0,0.0001589,2]
[395069167,1764397873283,-500.0,0.0001589,2]
[395069168,1764397873292,-556.95,0.0001589,2]
[395069169,1764397873302,-564.08,0.0001589,2]
[395069170,1764397873314,-540.78,0.0001589,2]
[395069171,1764397873323,-500.0,0.0001589,2]
[395069172,1764397873333,-689.25,0.0001589,2]
[395069173,1764397873342,-500.0,0.0001589,2]
[395069174,1764397873351,-848.59,0.0001589,2]
[395069175,1764397873360,-1164.8,0.0001589,2]
[395069176,1764397873369,-500.0,0.0001589,2]
[395069177,1764397873379,-500.0,0.0001589,2]
[395069178,1764397873388,-500.0,0.0001589,2]
[395069179,1764397873398,-1236.56,0.0001589,2]
[395069180,1764397873407,-500.0,0.0001589,2]
[395069181,1764397873416,-3090.35,0.0001589,2]
[395069182,1764397873426,-529.77,0.0001589,2]
[395069183,1764397873435,-5933.31,0.0001589,2]
[395069184,1764397873445,-1214.71,0.0001589,2]
[395069185,1764397873454,-500.0,0.0001589,2]
[395069186,1764397873464,-652.25,0.0001589,2]
[395069187,1764397873474,-1897.31,0.0001589,2]
[395069188,1764397873484,-414.29714174,0.0001589,2]
[395069189,1764397873494,-990.53,0.0001589,2]
[395069190,1764397873503,-500.0,0.0001589,2]
[395069191,1764397873512,-500.0,0.0001589,2]
[395069192,1764397873571,-778.35,0.0001589,2]
[395069193,1764397873582,-1618.79,0.0001589,2]
[395069194,1764397873591,-592.68,0.0001589,2]
[395069195,1764397873601,-899.31,0.0001589,2]
[395069196,1764397873610,-940.19,0.0001589,2]
[395069197,1764397873619,-500.0,0.0001589,2]
[395069198,1764397873628,-586.7030419,0.0001589,2]
[395069199,1764397873638,-500.0,0.0001589,2]
[395069200,1764397873647,-1484.2,0.0001589,2]
[395069201,1764397873657,-500.0,0.0001589,2]
[395069202,1764397873666,-596.04,0.0001589,2]
[395069203,1764397873675,-2800.32,0.0001589,2]
[395069204,1764397873684,-500.0,0.0001589,2]
[395069205,1764397873694,-500.0,0.0001589,2]
[395069206,1764397873703,-500.0,0.0001589,2]
[395069207,1764397873712,-500.0,0.0001589,2]
[395069208,1764397873721,-500.0,0.0001589,2]
[395069209,1764397873730,-552.21,0.0001589,2]
[395069210,1764397873739,-500.0,0.0001589,2]
[395069211,1764397873748,-1559.52,0.0001589,2]
[395069212,1764397873757,-522.61,0.0001589,2]
[395069213,1764397873766,-797.75,0.0001589,2]
[395069214,1764397873775,-513.48,0.0001589,2]
[395069215,1764397873784,-526.07,0.0001589,2]
[395069216,1764397873793,-500.0,0.0001589,2]
[395069217,1764397873802,-500.0,0.0001589,2]
[395069218,1764397873811,-1335.25,0.0001589,2]
[395069219,1764397873820,-1099.74,0.0001589,2]
[395069220,1764397873829,-3619.92,0.0001589,2]
[395069221,1764397873838,-500.0,0.0001589,2]
[395069222,1764397873847,-2405.03,0.0001589,2]
[395069223,1764397873857,-500.0,0.0001589,2]
[395069224,1764397873866,-7651.96,0.0001589,2]
[395069225,1764397873875,-500.0,0.0001589,2]
[395069226,1764397873884,-500.0,0.0001589,2]
[395069227,1764397873893,-500.0,0.0001589,2]
[395069228,1764397873902,-649.66,0.0001589,2]
[395069229,1764397873911,-1908.06,0.0001589,2]
[395069230,1764397873920,-500.0,0.0001589,2]
[395069231,1764397873929,-500.0,0.0001589,2]
[395069232,1764397873939,-662.97,0.0001589,2]
[395069233,1764397873948,-1158.74,0.0001589,2]
[395069234,1764397873956,-500.0,0.0001589,2]
[395069235,1764397873965,-1514.35,0.0001589,2]
[395069236,1764397873974,-642.19,0.0001589,2]
[395069237,1764397873983,-320.77976179,0.0001589,2]
[395069238,1764397873992,-500.0,0.0001589,2]
[395069239,1764397874001,-3678.73,0.0001589,2]
[395069240,1764397874010,-500.0,0.0001589,2]
[395069241,1764397874020,-6008.98,0.0001589,2]
[395069242,1764397874029,-514.33,0.0001589,2]
[395069243,1764397874039,-776.58,0.0001589,2]
[395069244,1764397874048,-500.0,0.0001589,2]
[395069245,1764397874057,-500.0,0.0001589,2]
[395069246,1764397874067,-3777.58,0.0001589,2]
[395069247,1764397874076,-980.94,0.0001589,2]
[395069248,1764397874085,-176.49119268,0.0001589,2]
[395069249,1764397874095,-500.0,0.0001589,2]
[395069250,1764397874103,-500.0,0.0001589,2]
[395069251,1764397874112,-907.07,0.0001589,2]
[395069252,1764397874121,-500.0,0.0001589,2]
[395069253,1764397874130,-1083.76,0.0001589,2]
[395069254,1764397874138,-604.62,0.0001589,2]
[395069255,1764397874147,-500.0,0.0001589,2]
[395069256,1764397874157,-1104.96,0.0001589,2]
[395069257,1764397874166,-500.0,0.0001589,2]
[395069258,1764397874175,-6559.69,0.0001589,2]
[395069259,1764397874184,-939.05,0.0001589,2]
[395069260,1764397874193,-493.44132172,0.0001589,2]
[395069261,1764397874203,-1377.4,0.0001589,2]
[395069262,1764397874213,-4642.22,0.0001589,2]
[395069263,1764397874223,-500.0,0.0001589,2]
[395069264,1764397874238,-1099.3,0.0001589,2]
[395069265,1764397874248,-2500.0,0.0001589,2]
[395069266,1764397874259,-500.8088125,0.0001589,2]
[395069267,1764397874268,-2500.0,0.0001589,2]
[395069268,1764397874278,-2500.0,0.0001589,2]
[395069269,1764397874286,-500.70728028,0.0001589,2]
[395069270,1764397874295,-770.0,0.000159,2]
[395069271,1764397874307,-600.0,0.0001599,2]
[395069272,1764397874316,-1000.0,0.00016,2]
[395069273,1764397874325,-13583.41826348,0.00016002,2]
[395069274,1764397874335,-3000.0,0.00016012,2]
[395069275,1764397874344,-3000.0,0.00016012,2]
[395069276,1764397874353,-242.15909246,0.00016028,2]
[395069277,1764397874362,-666.0,0.00016028,2]
[395069278,1764397874371,-602.27453635,0.0001615,2]
[395069279,1764397874381,-317.11045567,0.00016164,2]
[395069280,1764397874391,-500.0,0.00016164,2]
[395069281,1764397874400,-500.0,0.00016164,2]
[395069282,1764397874409,-500.0,0.00016164,2]
[395069283,1764397874418,-500.0,0.00016164,2]
[395069284,1764397874427,-766.13,0.00016164,2]
[395069285,1764397874435,-556.64,0.00016164,2]
[395069286,1764397874444,-500.0,0.00016164,2]
[395069287,1764397874453,-834.94,0.00016164,2]
[395069288,1764397874462,-500.0,0.00016164,2]
[395069289,1764397874471,-500.0,0.00016164,2]
[395069290,1764397874481,-823.76,0.00016164,2]
[395069291,1764397874491,-500.0,0.00016164,2]
[395069292,1764397874499,-500.0,0.00016164,2]
[395069293,1764397874508,-500.0,0.00016164,2]
[395069294,1764397874517,-598.61,0.00016164,2]
[395069295,1764397874527,-500.0,0.00016164,2]
[395069296,1764397874536,-903.4,0.00016164,2]
[395069297,1764397874545,-500.0,0.00016164,2]
[395069298,1764397874554,-500.0,0.00016164,2]
[395069299,1764397874563,-500.0,0.00016164,2]
[395069300,1764397874573,-500.0,0.00016164,2]
[395069301,1764397874582,-500.0,0.00016164,2]
[395069302,1764397874591,-500.0,0.00016164,2]
[395069303,1764397874600,-500.0,0.00016164,2]
[395069304,1764397874610,-376.53028913,0.00016164,2]
[395069305,1764397874619,-745.8,0.00016164,2]
[395069306,1764397874628,-500.0,0.00016164,2]
[395069307,1764397874637,-500.0,0.00016164,2]
[395069308,1764397874646,-390.0433081,0.00016164,2]
[395069309,1764397874655,-500.0,0.00016164,2]
[395069310,1764397874664,-500.0,0.00016164,2]
[395069311,1764397874673,-500.0,0.00016164,2]
[395069312,1764397874682,-587.4,0.00016164,2]
[395069313,1764397874691,-500.0,0.00016164,2]
[395069314,1764397874701,-738.75,0.00016164,2]
[395069315,1764397874710,-212.70290098,0.00016164,2]
[395069316,1764397874719,-500.0,0.00016164,2]
[395069317,1764397874729,-500.0,0.00016164,2]
[395069318,1764397874738,-596.16,0.00016164,2]
[395069319,1764397874747,-466.13813448,0.00016164,2]
[395069320,1764397874755,-500.0,0.00016164,2]
[395069321,1764397874765,-574.22,0.00016164,2]
[395069322,1764397874774,-500.0,0.00016164,2]
[395069323,1764397874783,-581.68,0.00016164,2]
[395069324,1764397874792,-500.0,0.00016164,2]
[395069325,1764397874801,-500.0,0.00016164,2]
[395069326,1764397874811,-556.95,0.00016164,2]
[395069327,1764397874820,-564.08,0.00016164,2]
[395069328,1764397874829,-540.78,0.00016164,2]
[395069329,1764397874838,-500.0,0.00016164,2]
[395069330,1764397874847,-689.25,0.00016164,2]
[395069331,1764397874856,-500.0,0.00016164,2]
[395069332,1764397874865,-848.59,0.00016164,2]
[395069333,1764397874874,-1164.8,0.00016164,2]
[395069334,1764397874884,-500.0,0.00016164,2]
[395069335,1764397874893,-500.0,0.00016164,2]
[395069336,1764397874902,-350.19203748,0.00016164,2]
[395069337,1764397874911,-1236.56,0.00016164,2]
[395069338,1764397874920,-500.0,0.00016164,2]
[395069339,1764397874929,-3090.35,0.00016164,2]
[395069340,1764397874939,-529.77,0.00016164,2]
[395069341,1764397874947,-5933.31,0.00016164,2]
[395069342,1764397874956,-1214.71,0.00016164,2]
[395069343,1764397874965,-500.0,0.00016164,2]
[395069344,1764397874975,-652.25,0.00016164,2]
[395069345,1764397874984,-1897.31,0.00016164,2]
[395069346,1764397874994,-990.53,0.00016164,2]
[395069347,1764397875003,-500.0,0.00016164,2]
[395069348,1764397875013,-500.0,0.00016164,2]
[395069349,1764397875022,-778.35,0.00016164,2]
[395069350,1764397875031,-1618.79,0.00016164,2]
[395069351,1764397875039,-592.68,0.00016164,2]
[395069352,1764397875048,-899.31,0.00016164,2]
[395069353,1764397875057,-940.19,0.00016164,2]
[395069354,1764397875066,-500.0,0.00016164,2]
[395069355,1764397875075,-500.0,0.00016164,2]
[395069356,1764397875084,-1484.2,0.00016164,2]
[395069357,1764397875093,-500.0,0.00016164,2]
[395069358,1764397875102,-596.04,0.00016164,2]
[395069359,1764397875111,-2800.32,0.00016164,2]
[395069360,1764397875120,-500.0,0.00016164,2]
[395069361,1764397875129,-500.0,0.00016164,2]
[395069362,1764397875138,-500.0,0.00016164,2]
[395069363,1764397875147,-500.0,0.00016164,2]
[395069364,1764397875156,-500.0,0.00016164,2]
[395069365,1764397875165,-552.21,0.00016164,2]
[395069366,1764397875174,-500.0,0.00016164,2]
[395069367,1764397875183,-1559.52,0.00016164,2]
[395069368,1764397875192,-522.61,0.00016164,2]
[395069369,1764397875201,-797.75,0.00016164,2]
[395069370,1764397875211,-513.48,0.00016164,2]
[395069371,1764397875220,-526.07,0.00016164,2]
[395069372,1764397875229,-500.0,0.00016164,2]
[395069373,1764397875240,-500.0,0.00016164,2]
[395069374,1764397875249,-1335.25,0.00016164,2]
[395069375,1764397875259,-1099.74,0.00016164,2]
[395069376,1764397875267,-3619.92,0.00016164,2]
[395069377,1764397875277,-500.0,0.00016164,2]
[395069378,1764397875287,-2405.03,0.00016164,2]
[395069379,1764397875296,-500.0,0.00016164,2]
[395069380,1764397875305,-7651.96,0.00016164,2]
[395069381,1764397875314,-500.0,0.00016164,2]
[395069382,1764397875323,-500.0,0.00016164,2]
[395069383,1764397875332,-500.0,0.00016164,2]
[395069384,1764397875341,-649.66,0.00016164,2]
[395069385,1764397875350,-1908.06,0.00016164,2]
[395069386,1764397875359,-567.87685238,0.00016164,2]
[395069387,1764397875367,-500.0,0.00016164,2]
[395069388,1764397875376,-662.97,0.00016164,2]
[395069389,1764397875386,-1158.74,0.00016164,2]
[395069390,1764397875395,-500.0,0.00016164,2]
[395069391,1764397875404,-1514.35,0.00016164,2]
[395069392,1764397875413,-642.19,0.00016164,2]
[395069393,1764397875422,-500.0,0.00016164,2]
[395069394,1764397875430,-500.0,0.00016164,2]
[395069395,1764397875439,-3678.73,0.00016164,2]
[395069396,1764397875448,-6008.98,0.00016164,2]
[395069397,1764397875457,-514.33,0.00016164,2]
[395069398,1764397875466,-776.58,0.00016164,2]
[395069399,1764397875475,-500.0,0.00016164,2]
[395069400,1764397875484,-500.0,0.00016164,2]
[395069401,1764397875493,-3777.58,0.00016164,2]
[395069402,1764397875502,-980.94,0.00016164,2]
[395069403,1764397875511,-500.0,0.00016164,2]
[395069404,1764397875520,-500.0,0.00016164,2]
[395069405,1764397875530,-907.07,0.00016164,2]
[395069406,1764397875539,-500.0,0.00016164,2]
[395069407,1764397875548,-1083.76,0.00016164,2]
[395069408,1764397875557,-604.62,0.00016164,2]
[395069409,1764397875566,-500.0,0.00016164,2]
[395069410,1764397875575,-1104.96,0.00016164,2]
[395069411,1764397875584,-500.0,0.00016164,2]
[395069412,1764397875593,-6559.69,0.00016164,2]
[395069413,1764397875602,-939.05,0.00016164,2]
[395069414,1764397875611,-1377.4,0.00016164,2]
[395069415,1764397875621,-4642.22,0.00016164,2]
[395069416,1764397875630,-500.0,0.00016164,2]
[395069417,1764397875640,-1600.0,0.00016164,2]
[395069418,1764397875649,-460.0,0.00016196,2]
[395069419,1764397875658,-368.72313193,0.00016228,11]
[395069420,1764397875668,-600.0,0.00016256,2]
[395069421,1764397875677,-204.0,0.00016365,2]
[395069422,1764397875686,-600.0,0.00016406,2]
[395069423,1764397875695,-1800.0,0.00016412,2]
[395069424,1764397875704,-500.0,0.00016438,2]
[395069425,1764397875714,-500.0,0.00016438,2]
[395069426,1764397875723,-500.0,0.00016438,2]
[395069427,1764397875732,-500.0,0.00016438,2]
[395069428,1764397875741,-766.13,0.00016438,2]
[395069429,1764397875750,-556.64,0.00016438,2]
[395069430,1764397875759,-203.57071522,0.00016438,2]
[395069431,1764397875768,-834.94,0.00016438,2]
[395069432,1764397875778,-500.0,0.00016438,2]
[395069433,1764397875787,-500.0,0.00016438,2]
[395069434,1764397875796,-823.76,0.00016438,2]
[395069435,1764397875805,-612.37724435,0.00016438,2]
[395069436,1764397875815,-500.0,0.00016438,2]
[395069437,1764397875824,-503.30242882,0.00016438,2]
[395069438,1764397875834,-372.54017378,0.00016438,2]
[395069439,1764397875843,-500.0,0.00016438,2]
[395069440,1764397875852,-598.61,0.00016438,2]
[395069441,1764397875861,-500.0,0.00016438,2]
[395069442,1764397875871,-903.4,0.00016438,2]
[395069443,1764397875880,-500.0,0.00016438,2]
[395069444,1764397875889,-525.0653404,0.00016438,2]
[395069445,1764397875899,-500.0,0.00016438,2]
[395069446,1764397875908,-500.0,0.00016438,2]
[395069447,1764397875917,-233.33902178,0.00016438,2]
[395069448,1764397875927,-288.56723865,0.00016438,2]
[395069449,1764397875936,-500.0,0.00016438,2]
[395069450,1764397875946,-745.8,0.00016438,2]
[395069451,1764397875955,-500.0,0.00016438,2]
[395069452,1764397875964,-500.0,0.00016438,2]
[395069453,1764397875974,-500.0,0.00016438,2]
[395069454,1764397875983,-500.0,0.00016438,2]
[395069455,1764397875992,-500.0,0.00016438,2]
[395069456,1764397876001,-587.4,0.00016438,2]
[395069457,1764397876011,-309.57081451,0.00016438,2]
[395069458,1764397876020,-738.75,0.00016438,2]
[395069459,1764397876030,-500.0,0.00016438,2]
[395069460,1764397876039,-500.0,0.00016438,2]
[395069461,1764397876048,-596.16,0.00016438,2]
[395069462,1764397876058,-500.0,0.00016438,2]
[395069463,1764397876067,-574.22,0.00016438,2]
[395069464,1764397876077,-445.58717806,0.00016438,2]
[395069465,1764397876087,-581.68,0.00016438,2]
[395069466,1764397876096,-500.0,0.00016438,2]
[395069467,1764397876106,-500.0,0.00016438,2]
[395069468,1764397876116,-556.95,0.00016438,2]
[395069469,1764397876126,-564.08,0.00016438,2]
[395069470,1764397876135,-540.78,0.00016438,2]
[395069471,1764397876144,-500.0,0.00016438,2]
[395069472,1764397876154,-689.25,0.00016438,2]
[395069473,1764397876163,-500.0,0.00016438,2]
[395069474,1764397876172,-848.59,0.00016438,2]
[395069475,1764397876182,-1164.8,0.00016438,2]
[395069476,1764397876192,-500.0,0.00016438,2]
[395069477,1764397876201,-500.0,0.00016438,2]
[395069478,1764397876211,-1236.56,0.00016438,2]
[395069479,1764397876220,-500.0,0.00016438,2]
[395069480,1764397876233,-3090.35,0.00016438,2]
[395069481,1764397876243,-529.77,0.00016438,2]
[395069482,1764397876252,-5933.31,0.00016438,2]
[395069483,1764397876261,-1214.71,0.00016438,2]
[395069484,1764397876274,-500.0,0.00016438,2]
[395069485,1764397876283,-652.25,0.00016438,2]